Cogmind - Beta 15 @@@ ROGUE MODE // 2025.07.22 @ 14:42:42 Player: Tuja Result: Destroyed by B-75 Beast with Magnetic Acceleration Cannon Performance ------------- Evolutions (5) 2500 Regions Visited (9) 1800 Robots Destroyed (37) 185 Value Destroyed (1314) 1314 Prototype IDs (25) 500 Alien Tech Used (0) 0 Bonus (1000) 1000 TOTAL SCORE: 7299 Bonus ------- Entered Garrisons 200 Used RIF Installer 500 Aligned with FarCom 300 Cogmind --------- Core Integrity 0/1000 Matter 122/300 Energy 100/100 System Corruption 8% Temperature Cool (0) Movement Hovering (60) Location -5/Factory Parts ------- > --- POWER (2) -------- (None) > --- PROPULSION (4) --- Gravmag Array > --- UTILITY (6) ------ (None) > --- WEAPON (5) ------- (None) > --- INVENTORY (5) ---- (None) Peak State ------------ > --- POWER ------------ Light Nuclear Core Light Nuclear Core > --- PROPULSION ------- Improved Carbon-fiber Leg Flexi-carbon Leg > --- UTILITY ---------- Advanced Heat Sink Advanced Heat Sink Medium Storage Unit Improved Signal Interpreter Improved Weapon Cycler Reaction Control System > --- WEAPON ----------- Autogun Autogun Heavy Flak Cannon Mass Driver Mass Driver > --- INVENTORY -------- Light Nuclear Core Light Nuclear Core Improved Heat Sink Experimental Sensor Array Improved Target Analyzer Matter Filter Relay Coupler [Heavy] Tesla Rifle Heavy Machine Gun Mass Driver [Rating: 64] Favorites ----------- Power Ion Engine Engine Ion Engine Power Core Light Nuclear Core Propulsion Aluminum Leg Leg Aluminum Leg Hover Unit Gravmag Array Utility Medium Storage Unit Device Advanced Heat Sink Storage Medium Storage Unit Processor Improved Signal Interpreter Protection Core Shielding Weapon Assault Rifle Energy Gun Particle Gun Energy Cannon EM Pulse Cannon Ballistic Gun Assault Rifle Ballistic Cannon Mass Driver Launcher Concussive RPG Slashing Weapon Blade Saw Build | -11 -10 -10 -10 -9 -8 -7 -6 -6 -5 ------- Run | Yrd Mat Min Exi Min Mat Fac Fac Gar Fac Slots Evolved 10 | . . . . . 4 2 2 . 2 Power 1 | . . . . . . . 1 . . Propulsion 2 | . . . . . 2 . . . . Utility 4 | . . . . . 1 2 . . 1 Weapon 3 | . . . . . 1 . 1 . 1 Parts Attached 65 | 6 1 1 . 1 9 4 3 26 14 Power 9 | 1 . . . . . . 1 7 . Engine 3 | 1 . . . . . . 1 1 . Core 6 | . . . . . . . . 6 . Reactor . | . . . . . . . . . . Propulsion 12 | 2 . . . . 3 2 1 2 2 Treads . | . . . . . . . . . . Leg 11 | 2 . . . . 3 2 1 2 1 Wheel . | . . . . . . . . . . Hover 1 | . . . . . . . . . 1 Flight . | . . . . . . . . . . Utility 20 | 1 1 1 . 1 3 2 . 5 6 Device 11 | . . 1 . . . 2 . 3 5 Storage 2 | 1 . . . . 1 . . . . Processor 3 | . 1 . . . . . . 1 1 Hackware . | . . . . . . . . . . Protection 4 | . . . . 1 2 . . 1 . Artifact . | . . . . . . . . . . Weapon 24 | 2 . . . . 3 . 1 12 6 Energy Gun 8 | . . . . . 2 . 1 5 . Energy Cannon 1 | . . . . . . . . 1 . Ballistic Gun 8 | 2 . . . . 1 . . 4 1 Ballistic Cannon 4 | . . . . . . . . . 4 Launcher 1 | . . . . . . . . 1 . Special Weapon . | . . . . . . . . . . Impact Weapon . | . . . . . . . . . . Slashing Weapon 2 | . . . . . . . . 1 1 Piercing Weapon . | . . . . . . . . . . Special Melee Weapon . | . . . . . . . . . . Unidentified Prototypes 2 | . . 1 . . 1 . . . . Corrupted Parts 2 | . . . . . . . . 2 . System Corruption 8 | . . . . . . . . 8 . Parts Lost 48 | . . 1 . . 5 . . 27 15 Power 7 | . . . . . . . . 6 1 Propulsion 8 | . . . . . 2 . . 4 2 Utility 15 | . . 1 . . 1 . . 5 8 Weapon 18 | . . . . . 2 . . 12 4 Highest Loss Streak 13 | . . 1 . . 4 . . 13 7 To Critical Strikes 2 | . . . . . . . . 2 . Average Backups 7 | 2 4 7 7 8 9 9 9 7 7 Power 1 | . 1 1 1 1 1 2 1 1 1 Propulsion . | . 2 1 1 1 . . 1 . . Utility 2 | . . 1 1 2 1 1 2 2 2 Weapon 3 | 1 1 2 3 3 4 4 4 2 3 Tool/Special . | . . . . . . . . . . Unused Backups 15 | . . 5 . . 4 1 1 . 4 Power 1 | . . . . . . . . . 1 Propulsion 2 | . . 2 . . . . . . . Utility 5 | . . 2 . . 2 . . . 1 Weapon 6 | . . 1 . . 2 1 . . 2 Tool/Special 1 | . . . . . . . 1 . . Average Slot Usage (%) 85 | . 97 99 100 100 86 98 95 71 74 Engine 7 | . 14 14 14 14 9 7 13 4 . Core 3 | . . . . . . . . 3 9 Leg 19 | . 28 28 28 28 24 29 26 13 7 Device 13 | . . 6 14 9 5 14 13 12 20 Storage 8 | . 14 14 14 14 9 7 6 6 4 Processor 2 | . 11 6 . . . . . 1 4 Protection 5 | . . . . 4 11 15 13 6 . Energy Gun 4 | . . . . . 10 7 8 8 2 Ballistic Gun 15 | . 28 28 28 28 16 15 13 10 9 Ballistic Cannon 1 | . . . . . . . . . 4 Peak Build Rating 64 | 6 7 15 16 16 21 37 47 48 64 Average Rating 30 | 3 6 11 15 13 19 35 41 36 48 On Entrance 20 | . 6 7 15 16 16 19 37 47 44 Naked Turns 30 | . . . . . . . . . 30 Heaviest Build 56 | 13 13 14 14 16 37 37 46 47 56 Greatest Support 68 | 20 20 20 20 20 35 58 68 68 38 Greatest Overweight (x) 9 | 1 . . . . 3 1 . 9 5 Average Overweight (x) . | . . . . . . . . . . Largest Inventory Capacity 10 | 8 8 8 8 8 10 10 10 10 10 Average Capacity 9 | 7 8 8 8 8 9 10 10 10 9 Most Carried 10 | 7 8 8 8 8 10 10 10 10 10 Average Carried 7 | 3 5 7 7 8 9 9 9 7 7 Final Capacity 10 | 8 8 8 8 8 10 10 10 10 5 Final Carried 10 | 4 8 7 8 8 10 10 10 5 . Class Distribution -------------------- 32% | Mutant 32% | Skirmisher 31% | Scavenger-Skirmisher 3% | Tank Dominant Class ---------------- Mutant | -10/Materials Mutant | -10/Mines Mutant | -10/Exiles Skirmisher | -9/Mines Skirmisher | -8/Materials Skirmisher | -7/Factory Skirmisher | -6/Factory Scavenger-Skirmisher | -6/Garrison Scavenger-Skirmisher | -5/Factory Resources | -11 -10 -10 -10 -9 -8 -7 -6 -6 -5 ----------- Run | Yrd Mat Min Exi Min Mat Fac Fac Gar Fac Matter Collected 1272 | 198 72 45 . 76 147 . . 570 164 Remotely . | . . . . . . . . . . Salvage Created 1203 | . . 95 . 39 261 . . 653 155 Parts 64 | . . 4 . . 15 . . 35 10 Haulers Intercepted . | . . . . . . . . . . Recyclers Shooed 2 | . . . . . 2 . . . . Parts Field Recycled . | . . . . . . . . . . Retrieved Matter . | . . . . . . . . . . Parts Self-Destructed . | . . . . . . . . . . Prevented . | . . . . . . . . . . Kills | -11 -10 -10 -10 -9 -8 -7 -6 -6 -5 ------- Run | Yrd Mat Min Exi Min Mat Fac Fac Gar Fac Combat Hostiles Destroyed 37 | . . 2 . 3 8 . . 21 3 Guns 34 | . . 2 . 3 8 . . 21 . Cannons 3 | . . . . . . . . . 3 Classes Destroyed 7 | . . 1 . 1 2 . . 2 1 Swarmer 19 | . . . . 3 4 . . 12 . Cutter 3 | . . . . . . . . 3 . Grunt 7 | . . 2 . . 2 . . 3 . Brawler 1 | . . . . . . . . 1 . Duelist 3 | . . . . . 1 . . 2 . Sentry 2 | . . . . . 1 . . . 1 Programmer 2 | . . . . . . . . . 2 Best Kill Streak 5 | . . 1 . 2 4 . . 5 2 Combat Bots Only 5 | . . 1 . 2 4 . . 5 2 Max Kills in Single Turn 2 | . . 1 . 1 2 . . 2 1 Gunslinging 1 | . . . . . 1 . . 1 . Exploded . | . . . . . . . . . . Melee . | . . . . . . . . . . Uniques/NPCs Destroyed . | . . . . . . . . . . Combat | -11 -10 -10 -10 -9 -8 -7 -6 -6 -5 -------- Run | Yrd Mat Min Exi Min Mat Fac Fac Gar Fac Hostile Shots Fired 393 | . . 18 . 34 57 . . 187 97 Missed 89 | . . 5 . 11 12 . . 36 25 Hits 304 | . . 13 . 23 45 . . 151 72 Melee 35 | . . . . . 2 . . 20 13 Projectile 269 | . . 13 . 23 43 . . 131 59 Critical Strikes 19 | . . 1 . . 1 . . 11 6 Actively Blocked 2 | . . . . . . . . 2 . Part Disruptions 2 | . . 1 . . . . . . 1 Damage Taken 5716 | . . 170 . 184 590 . . 2740 2032 Core 1532 | . . 30 . 29 18 . . 435 1020 Absorbed by Shields . | . . . . . . . . . . Redirected to Shielding 77 | . . . . . 3 . . 74 . Ignored by Resistances 90 | . . . . . 36 . . 54 . Core Remaining (%) 84 | 100 . . . 76 96 100 . 48 . Volleys Fired 122 | . . 10 . 14 22 . . 54 22 Largest 5 | . . 2 . 2 3 . . 4 5 Hottest 214 | . . 40 . 40 135 . . 214 184 Shots Fired 303 | . . 20 . 28 48 . . 148 59 Gun 279 | . . 20 . 28 48 . . 146 37 Cannon 23 | . . . . . . . . 2 21 Launcher 1 | . . . . . . . . . 1 Special . | . . . . . . . . . . Kinetic 201 | . . 20 . 28 28 . . 71 54 Thermal 90 | . . . . . 15 . . 71 4 Explosive 1 | . . . . . . . . . 1 Electromagnetic 11 | . . . . . 5 . . 6 . Robot Hit Streak 11 | . . 5 . 3 11 . . 8 6 Robot Miss Streak 9 | . . 1 . 5 3 . . 9 5 Penetration Max . | . . . . . . . . . . Secondary Targets 12 | . . . . 2 1 . . 9 . Max Gunslinging Chain 1 | . . . . 1 1 . . 1 . Shots Hit Robots 174 | . . 14 . 12 34 . . 87 27 Core Hits 82 | . . 5 . 4 14 . . 49 10 Critical Kills . | . . . . . . . . . . Critical Parts Destroyed 1 | . . . . . . . . . 1 Critical Strikes 4 | . . . . . 1 . . 1 2 Burn 2 | . . . . . 1 . . 1 . Destroy 1 | . . . . . . . . . 1 Blast 1 | . . . . . . . . . 1 Melee Attacks 1 | . . . . . . . . . 1 Impact . | . . . . . . . . . . Slashing 1 | . . . . . . . . . 1 Piercing . | . . . . . . . . . . Sneak Attacks 1 | . . . . . . . . . 1 Combat Hostiles . | . . . . . . . . . . Follow-up Attacks . | . . . . . . . . . . Damage Inflicted 3144 | . . 149 . 123 519 . . 1660 693 Guns 2772 | . . 149 . 123 514 . . 1608 378 Cannons 305 | . . . . . . . . 52 253 Explosions 34 | . . . . . . . . . 34 Melee 26 | . . . . . . . . . 26 Ramming 7 | . . . . . 5 . . . 2 Kinetic 1745 | . . 149 . 123 255 . . 612 606 Thermal 1173 | . . . . . 208 . . 940 25 Explosive 34 | . . . . . . . . . 34 Electromagnetic 159 | . . . . . 51 . . 108 . Impact . | . . . . . . . . . . Slashing 26 | . . . . . . . . . 26 Piercing . | . . . . . . . . . . Highest Corruption 21 | . . . . . . . . 21 8 Average Corruption 15 | . . . . . . . . 17 7 Corruption Purged . | . . . . . . . . . . Corruption Blocked . | . . . . . . . . . . Effects 12 | . . . . . . . . 10 2 Message Errors 4 | . . . . . . . . 4 . Matter Fused 2 | . . . . . . . . 2 . Heat Flow Errors 2 | . . . . . . . . 2 . Energy Discharges 1 | . . . . . . . . . 1 Alerts 2 | . . . . . . . . 1 1 Weapon Failures 1 | . . . . . . . . 1 . Overload Shots . | . . . . . . . . . . Overflow Damage 5 | . . . . . . . . . 5 Projectiles . | . . . . . . . . . . Explosions 5 | . . . . . . . . . 5 Melee . | . . . . . . . . . . Knockbacks 2 | . . . . . . . . . 2 Impact . | . . . . . . . . . . Kinetic 2 | . . . . . . . . . 2 Secondary . | . . . . . . . . . . Self-Inflicted Damage 25 | . . . . . . . . . 25 Shots 1 | . . . . . . . . . 1 Rammed 1 | . . . . . . . . . 1 Targets Rammed 3 | . . . . . 2 . . . 1 Kicked 2 | . . . . . 2 . . . . Crushed . | . . . . . . . . . . Highest Temperature 490 | . . 42 . 12 438 . . 490 65 Average Temperature 161 | . . 11 . 6 158 . . 213 20 Received Heat Transfer 1225 | . . 138 . . 261 . . 585 241 Effects 9 | . . . . . 1 . . 8 . Shutdowns 6 | . . . . . 1 . . 5 . Interference 1 | . . . . . . . . 1 . Short Circuit 2 | . . . . . . . . 2 . Siege Activations . | . . . . . . . . . . Martial Activations . | . . . . . . . . . . Shielding Activations . | . . . . . . . . . . Robots Disrupted . | . . . . . . . . . . Combat Hostiles . | . . . . . . . . . . Robots Corrupted . | . . . . . . . . . . Combat Hostiles . | . . . . . . . . . . Parts Fried . | . . . . . . . . . . Impact Corruptions . | . . . . . . . . . . Robots Melted . | . . . . . . . . . . Combat Hostiles . | . . . . . . . . . . Parts Melted 2 | . . . . . 1 . . 1 . Heat Transferred 2696 | . . . . . 555 . . 2104 37 Parts Sabotaged 7 | . . . . . . . . . 7 Parts Stolen . | . . . . . . . . . . Parts Stripped . | . . . . . . . . . . Power Chain Reactions . | . . . . . . . . . . Alert | -11 -10 -10 -10 -9 -8 -7 -6 -6 -5 ------- Run | Yrd Mat Min Exi Min Mat Fac Fac Gar Fac Maximum Alert Level 1 | . . . . . . . . 1 1 Low Security (%) 94 | 100 100 100 . 100 100 100 100 79 94 Level 1 5 | . . . . . . . . 20 5 Level 2 . | . . . . . . . . . . Level 3 . | . . . . . . . . . . Level 4 . | . . . . . . . . . . Level 5 . | . . . . . . . . . . High Security . | . . . . . . . . . . Max Security . | . . . . . . . . . . Peak Influence 242 | . 8 60 . 60 74 22 14 242 214 Initial 126 | . . 1 . . 7 22 . 2 126 Average 50 | . 2 11 . 34 14 2 . 115 81 Influence Increases 1436 | . 19 110 . 70 190 . 22 510 515 Destroy 0b10 Robot/C 740 | . . 40 . 60 160 . . 420 60 Destroy Leader 100 | . . 10 . 10 30 . . 30 20 Trap Triggered on 0b10 30 | . . . . . . . . 30 . Successful Hack 41 | . 19 . . . . . 22 . . Anti-Garrison Action 150 | . . . . . . . . . 150 Destroy Structure 30 | . . . . . . . . . 30 Lose Combat Pursuer 345 | . . 60 . . . . . 30 255 Influence Decreases 1229 | . 15 114 . 50 160 50 18 272 550 Entered New Map 162 | . . 3 . . 13 28 . 2 116 Time Decay 601 | . 15 101 . 50 97 22 18 . 298 Lost Part 466 | . . 10 . . 50 . . 270 136 Squads Dispatched 6 | . . . . . . . . . 6 Investigation 1 | . . . . . . . . . 1 Extermination 1 | . . . . . . . . . 1 Reinforcement 2 | . . . . . . . . . 2 Assault 2 | . . . . . . . . . 2 Garrison . | . . . . . . . . . . Intercept . | . . . . . . . . . . Searches Triggered . | . . . . . . . . . . Construction Impeded . | . . . . . . . . . . Haulers Reinforced . | . . . . . . . . . . Active Scanning Responses . | . . . . . . . . . . Cargo Convoy Interrupts . | . . . . . . . . . . Stealth | -11 -10 -10 -10 -9 -8 -7 -6 -6 -5 --------- Run | Yrd Mat Min Exi Min Mat Fac Fac Gar Fac Distress Signals 5 | . . . . . 3 . . . 2 Communications Jammed . | . . . . . . . . . . Distress Signals . | . . . . . . . . . . Times Spotted 85 | . 2 9 . 3 8 2 . 24 37 Peak Tracking Total 14 | . 2 6 . 3 4 1 . 9 14 Tactical Retreats 6 | . . 2 . . . . . 1 3 Traps | -11 -10 -10 -10 -9 -8 -7 -6 -6 -5 ------- Run | Yrd Mat Min Exi Min Mat Fac Fac Gar Fac Traps Triggered 3 | . . . . . . 1 . 1 1 Indirectly . | . . . . . . . . . . Trap Hack Attempts . | . . . . . . . . . . Triggered . | . . . . . . . . . . Disarmed . | . . . . . . . . . . Reprogrammed . | . . . . . . . . . . Reused 3 | . . . . . . . . 3 . Traps Reconfigurated 16 | . . . . . . 5 5 6 . Traps Extracted . | . . . . . . . . . . Installed . | . . . . . . . . . . Triggered 3 | . . . . . . . . 3 . Machines | -11 -10 -10 -10 -9 -8 -7 -6 -6 -5 ---------- Run | Yrd Mat Min Exi Min Mat Fac Fac Gar Fac Machines Disabled 1 | . . . . . . . . . 1 Max in Single Turn 1 | . . . . . . . . . 1 Garrison Access 1 | . . . . . . . . . 1 Machines Repaired . | . . . . . . . . . . Machines Dismantled . | . . . . . . . . . . Machines Sabotaged . | . . . . . . . . . . Overloaded Fab Kills . | . . . . . . . . . . Hacking | -11 -10 -10 -10 -9 -8 -7 -6 -6 -5 --------- Run | Yrd Mat Min Exi Min Mat Fac Fac Gar Fac Machines Accessed 13 | . 4 . 1 . 1 2 4 1 . Terminals 9 | . 4 . . . 1 1 2 1 . Fabricators . | . . . . . . . . . . Repair Stations . | . . . . . . . . . . Recycling Units 2 | . . . . . . 1 1 . . Scanalyzers . | . . . . . . . . . . Garrison Access 1 | . . . . . . . 1 . . Total Hacks 29 | . 11 . 1 . 2 3 11 1 . Successful 11 | . 3 . 1 . . . 7 . . Failed 18 | . 8 . . . 2 3 4 1 . Catastrophic 3 | . 2 . . . . . . 1 . Database Lockouts . | . . . . . . . . . . Manual 12 | . 7 . 1 . . . 4 . . Terminals 24 | . 11 . . . 2 2 8 1 . Fabricators . | . . . . . . . . . . Repair Stations . | . . . . . . . . . . Recycling Units 2 | . . . . . . 1 1 . . Scanalyzers . | . . . . . . . . . . Garrison Access 2 | . . . . . . . 2 . . Terminal Hacks 9 | . 3 . 1 . . . 5 . . Record 3 | . . . . . . . 3 . . Part Schematic 1 | . 1 . . . . . . . . Branch Access Points 1 | . 1 . . . . . . . . Locate Traps 2 | . 1 . . . . . 1 . . Dispatch Records 1 | . . . . . . . 1 . . Proto ID Catalog 1 | . . . 1 . . . . . . Fabricator Hacks . | . . . . . . . . . . Repair Station Hacks . | . . . . . . . . . . Recycling Unit Hacks 1 | . . . . . . . 1 . . Retrieve Matter 1 | . . . . . . . 1 . . Scanalyzer . | . . . . . . . . . . Garrison Access Hacks 1 | . . . . . . . 1 . . Unlock Access 1 | . . . . . . . 1 . . Unauthorized Hacks . | . . . . . . . . . . Terminals . | . . . . . . . . . . Fabricators . | . . . . . . . . . . Repair Stations . | . . . . . . . . . . Recycling Units . | . . . . . . . . . . Scanalyzers . | . . . . . . . . . . Garrison Access . | . . . . . . . . . . Data Cores Recovered . | . . . . . . . . . . Used . | . . . . . . . . . . Hacking Detections 9 | . 3 . . . 1 2 2 1 . Full Trace Events . | . . . . . . . . . . Feedback Events . | . . . . . . . . . . Feedback Blocked . | . . . . . . . . . . Robot Schematics Acquired . | . . . . . . . . . . Robots Built . | . . . . . . . . . . Authchips . | . . . . . . . . . . Time . | . . . . . . . . . . Total Robot Build Rating . | . . . . . . . . . . Part Schematics Acquired 1 | . 1 . . . . . . . . Parts Built . | . . . . . . . . . . Authchips . | . . . . . . . . . . Time . | . . . . . . . . . . Total Part Build Rating . | . . . . . . . . . . Parts Repaired . | . . . . . . . . . . Time . | . . . . . . . . . . Parts Recycled . | . . . . . . . . . . Recycled Matter . | . . . . . . . . . . Retrieved Matter . | . . . . . . . . . . Retrieved Components . | . . . . . . . . . . Parts Scanalyzed . | . . . . . . . . . . Part Schematics Acquired . | . . . . . . . . . . Parts Damaged . | . . . . . . . . . . Bothacking | -11 -10 -10 -10 -9 -8 -7 -6 -6 -5 ------------ Run | Yrd Mat Min Exi Min Mat Fac Fac Gar Fac Used RIF Installer 1 | . . . . . . . . 1 . Robots Hacked . | . . . . . . . . . . Non-combat . | . . . . . . . . . . Combat . | . . . . . . . . . . Robot Hacks Applied . | . . . . . . . . . . Relay Couplers Released 3 | . . . . . . . . . 3 Machine Destruction 3 | . . . . . . . . . 3 Fabnet Peak Effective % . | . . . . . . . . . . Robots Rewired . | . . . . . . . . . . Allies Hacked . | . . . . . . . . . . Hacks Repelled . | . . . . . . . . . . Allies | -11 -10 -10 -10 -9 -8 -7 -6 -6 -5 -------- Run | Yrd Mat Min Exi Min Mat Fac Fac Gar Fac Total Allies . | . . . . . . . . . . Largest Group . | . . . . . . . . . . Highest-Rated Group . | . . . . . . . . . . Highest-Rated Ally . | . . . . . . . . . . Total Orders . | . . . . . . . . . . Ally Attacks . | . . . . . . . . . . Total Damage . | . . . . . . . . . . Kills . | . . . . . . . . . . Allies Corrupted . | . . . . . . . . . . Allies Melted . | . . . . . . . . . . Intel | -11 -10 -10 -10 -9 -8 -7 -6 -6 -5 ------- Run | Yrd Mat Min Exi Min Mat Fac Fac Gar Fac Active Infowar (turns) 1968 | . . 195 368 64 381 303 273 379 5 Sensors 1008 | . . 195 368 64 381 . . . . Traps 955 | . . . . . . 303 273 379 . ECM 5 | . . . . . . . . . 5 Robot Analysis Total . | . . . . . . . . . . Derelict Logs Recovered 1 | . . . . 1 . . . . . Drone Launches . | . . . . . . . . . . Drone Recoveries . | . . . . . . . . . . Exploration | -11 -10 -10 -10 -9 -8 -7 -6 -6 -5 ------------- Run | Yrd Mat Min Exi Min Mat Fac Fac Gar Fac Turns Passed 3986 | 69 99 410 368 108 599 310 273 687 1063 Spaces Moved 2247 | 48 78 304 303 55 270 226 220 264 479 Core 135 | 12 . . . . . . . 8 115 Treads . | . . . . . . . . . . Legs 2086 | 36 78 304 303 55 270 226 220 256 338 Wheels . | . . . . . . . . . . Hover 26 | . . . . . . . . . 26 Flight . | . . . . . . . . . . Fastest Speed 50 | 50 120 120 120 120 120 120 120 120 50 Average Speed 134 | 111 120 120 120 120 135 121 120 154 158 Slowest Speed 500 | 120 120 120 120 120 330 190 120 500 300 Overloaded Moves . | . . . . . . . . . . Propulsion Burnouts . | . . . . . . . . . . Robots Hopped . | . . . . . . . . . . Potential Cave-ins . | . . . . . . . . . . Cave-ins Triggered . | . . . . . . . . . . Exploration Rate (%) 24 | 3 26 63 61 14 16 7 7 29 14 Regions Visited 9 Branch Regions 3 Pre-discovered Areas . | . . . . . . . . . . Known Exits Taken 2 | . 1 . . . . . 1 . . Unknown Exits Taken 6 | 1 . 1 1 1 1 1 . . . Scrap Searched 4 | . . 2 . 2 . . . . . Spaces Dug 6 | . . . . . . . . . 6 Terrain Destroyed 14 | . . . . . . . . . 14 Melee . | . . . . . . . . . . Projectile 12 | . . . . . . . . . 12 AOE 2 | . . . . . . . . . 2 Terrain Rammed . | . . . . . . . . . . Walls Destroyed . | . . . . . . . . . . Machines Disabled . | . . . . . . . . . . Actions | -11 -10 -10 -10 -9 -8 -7 -6 -6 -5 --------- Run | Yrd Mat Min Exi Min Mat Fac Fac Gar Fac Total 3005 | 63 83 333 309 71 464 261 230 435 756 Wait 446 | . . 9 . 1 141 24 . 54 217 Move 2237 | 47 77 303 302 54 269 225 219 262 479 Hop . | . . . . . . . . . . Pick Up 90 | 10 5 5 4 . 15 4 5 26 16 Fast Attach . | . . . . . . . . . . Attach 68 | 6 1 1 . . 8 3 2 32 15 Detach 2 | . . . . . . . . 2 . Swap 7 | . . . . 2 2 1 1 1 . Drop 23 | . . 5 3 . 5 1 3 1 5 Fire 122 | . . 10 . 14 22 . . 54 22 Melee 1 | . . . . . . . . . 1 Ram 1 | . . . . . . . . . 1 Kick 2 | . . . . . 2 . . . . Crush . | . . . . . . . . . . Escape Stasis 6 | . . . . . . 3 . 3 . Rewire . | . . . . . . . . . . Trap . | . . . . . . . . . . Miscellaneous . | . . . . . . . . . . Route ------- -11/Scrapyard -10/Materials -10/Mines -10/Exiles -9/Mines -8/Materials -7/Factory -6/Factory -6/Garrison -5/Factory History --------- Turn | Location | Event 10 | -11/Scrapyard | Discovered new exit (range 15) 70 | -11/Scrapyard | Entered Materials 102 | -10/Materials | Identified exit to Mines 169 | -10/Materials | Entered Mines 170 | -10/Mines | Assembled infested the area 251 | -10/Mines | Found a damaged Exp. Sensor Array with a note attached 254 | -10/Mines | Found Prototype Device 313 | -10/Mines | Build established: Mutant 384 | -10/Mines | Identified Exp. Sensor Array 573 | -10/Mines | Deemed a non-threat by the Exiles lab entrance 574 | -10/Mines | Discovered new exit (range 5) 579 | -10/Mines | Entered Exiles 609 | -10/Exiles | Met 8R-AWN 630 | -10/Exiles | Met EX-HEX 671 | -10/Exiles | Met EX-BIN 699 | -10/Exiles | Aligned with FarCom system 701 | -10/Exiles | Given EX-Vault access code 728 | -10/Exiles | Opened EX-Vault 738 | -10/Exiles | Found Trap Reconfigurator 767 | -10/Exiles | Warned to stay clear of 0b10 Research branches 895 | -10/Exiles | Met EX-DEC 935 | -10/Exiles | Discovered new exit (range 12) 947 | -10/Exiles | Left Exiles lab with Trap Reconfigurator 947 | -10/Exiles | Entered Mines 1022 | -9/Mines | Learned Materials non-interactive machine intel 1041 | -9/Mines | Discovered new exit (range 6) 1055 | -9/Mines | Entered Materials 1055 | -8/Materials | Evolved 4 slots: Propulsion x2, Utility x1, Weapon x1 1056 | -8/Materials | Loaded intel: 50 non-interactive machine locations 1303 | -8/Materials | Build established: Skirmisher 1504 | -8/Materials | Lost 4 parts (2n1u1w) 1606 | -8/Materials | Discovered new exit (range 16) 1654 | -8/Materials | Entered Factory 1654 | -7/Factory | Evolved 2 slots: Utility x2 1911 | -7/Factory | Discovered new exit (range 16) 1964 | -7/Factory | Entered another Factory area 1964 | -6/Factory | Evolved 2 slots: Power x1, Weapon x1 2236 | -6/Factory | Identified exit to Garrison 2237 | -6/Factory | Entered Garrison 2280 | -6/Garrison | Installed Relay Interface Framework 2511 | -6/Garrison | Lost 13 parts (2p4n2u5w) 2629 | -6/Garrison | Triggered checkpoint 2681 | -6/Garrison | Triggered checkpoint 2697 | -6/Garrison | Triggered checkpoint 2738 | -6/Garrison | System corruption reached 10% 2771 | -6/Garrison | Lost 12 parts (3p3u6w) 2805 | -6/Garrison | Core integrity fell below 50% 2901 | -6/Garrison | Build established: Scavenger-Skirmisher 2912 | -6/Garrison | Discovered new exit (range 10) 2921 | -6/Garrison | Identified exit to Factory 2924 | -6/Garrison | Entered Factory 2924 | -5/Factory | Evolved 2 slots: Utility x1, Weapon x1 3522 | -5/Factory | Lost 3 parts (1n2w) 3836 | -5/Factory | Lost 5 parts (1n3u1w) 3933 | -5/Factory | Core integrity fell below 50% 3947 | -5/Factory | Spotted B-75 Beast 3950 | -5/Factory | Core integrity fell below 20% 3971 | -5/Factory | Lost 7 parts (1p5u1w) 3987 | -5/Factory | Destroyed by B-75 Beast with Magnetic Acceleration Cannon Last Messages --------------- 03931_ Lgt. Nuclear Core destroyed. 03931_ System corrupted by crushing effect (+1). 03931_ System corrupted by crushing effect (+4). 03931_ Knocked back. 03932_ System corrupted: IFF burst signal emitted. 03934_ Matter Filter destroyed. 03935_ M-13 Machinist destroyed. 03938_ Adv. ECM Suite destroyed. 03938_ Imp. Target Analyzer destroyed. 03938_ System corrupted by crushing effect (+3). 03938_ Knocked back. 03938_ Destroyed Imp. Deuterium Engine. 03940_ Hvy. Machine Gun destroyed. 03943_ Slammed into G-50 Soldier. 03950_ K-01 Serf cleans the Nuclear Reactor. 03957_ Acquired 4 matter. 03959_ System corrupted: Energy discharge (-29). 03969_ Acquired Gravmag Array. Map ----- +----------------------------------------------------+ | ?????????????????????????????????????????????????? | | ?????????????????????????????????????????????????? | | ?????????????????????????????????????????????????? | | ?????????????????????????????????????????????????? | | ?????????????????????????????????????????????????? | | ?????????????????????????????????????????????????? | | ??????????????????????????????????? ????????????? | | ????????????????????????????????? ????????????? | | ???????????????????????????????# ?????????###? | | ???????????????????????????????# ????????# #? | | ???????????????????????????????# ######### ## | | ???????????????????????????????# | | ???????????????????????????????# | | ???????????????????????????????#[] | | ???????????????????????????#####[] """" """ | | ??????????????????????????? #! """" """ | | ?????????????????????????? # """" """ | | ??????????????????? ?????? # | | ??????????????????# ?????" # | | ??????????????????# """"" # | | ??????????????????# """"" g | | ??????????????????# # | | ??????????????????# """ # gb b l % | | ??????????????????# """"" # #####" "##### | | ??????????????????# """"" # #???#"Y"#?# | | ??????????????????# @ # #???#"""#?# | | ??????????????????# ; BB #???#####?# | | ??????????????????#########+#### BB #?????????# | | ??????????????????????????# #??# #????????## | | ?????????????????????######+#### #?????? ### | | ?????????????????????# # #???? *??? | | ?????????????????????# # g #?? ????? | | ?????????????????????# # # """ ""????? | | ?????????????????????# + + """ ""????? | | ?????????????????????# ! # # """ ""????? | | ?????????????????????# # #?? ????? | | ?????????????????????# | # #????] ??? | | ?????????????????????# # #??????###??? | | ?????????????????????########### #???????????? | | ???????????????????????????????#p #???????????? | | ???????????????????????????????# +???????????? | | ???????????????????????????????# #???????????? | | ???????????????????????????????# #???????????? | | ??????????????????????????????? #???????????? | | ??????????????????????????????####+###???????????? | | ?????????????????????????????????????????????????? | | ?????????????????????????????????????????????????? | | ?????????????????????????????????????????????????? | | ?????????????????????????????????????????????????? | | ?????????????????????????????????????????????????? | +----------------------------------------------------+ Best States ------------- Heat Dissipation 78 Energy Generation 28 Energy Capacity 400 Matter Stores 300 Matter Capacity 300 Sight Range 16 Robot Scan Range 20 Terrain Scan Density 10 Armor Coverage 300 Resistance: KI 20 Core Shielding 20 Weapon Cycling 20 Melee Speed Boost 20 Evasion (%) 63 Targeting Accuracy 5 Target Analysis 6 Matter Filtering 30 Item Schematics ----------------- Terrain Scanner | -10/Materials | Hacked Robot Schematics ------------------ None Fabricated ------------ Nothing Repaired ---------- Nothing Alien Tech Used ----------------- None Achievements -------------- None Challenges ------------ None Game ------ Seed CompositeDynamicLog Manual? 0 Play Time 00:48:38 Cumulative 39.0 hours Start 2025.07.22 @ 11:44:53 End 2025.07.22 @ 14:42:42 Sessions 3 Manual Loads 0 Difficulty Rogue Special Mode None Game No. 21 Rogue 17 Adventurer 4 Explorer 0 Win Type - Total 0 Types 0/0/0/0/0/0/0/0/0/0 Lore% 24 Gallery% 31 Achievement% 28 Wizard Run 0 Options --------- Layout 1 ASCII 0 Keyboard 0 Movement Numpad Keybinds 1 Fullscreen 1 Font 24/Smallcaps Map View 50x35 Zoom Use 0% Tactical HUD 1 Map Filters NONE Filters NONE Steam 1 RUN: 42004d45-163b-48e7-b286-47c56ed2dc9c